[Event "January 9 Early 2024"]
[Site "https://www.chess.com"]
[Date "2024.01.11"]
[Round "8"]
[White "Baziuk, Vladyslav"]
[Black "Kopczynski, Michal"]
[Result "0-1"]
[Board "60"]
[TimeControl "180+1"]
[WhiteFideId "34107940"]
[BlackFideId "1124200"]
[WhiteElo "2673"]
[BlackElo "2535"]
[WhiteTeam "UKR"]
[BlackTeam "POL"]
[WhiteClock "0:00:17"]
[BlackClock "0:00:37"]

1. e4 {[%clk 0:03:00]}  b6 {[%clk 0:03:00]} 2. d4 {[%clk 0:03:00]}  Bb7 {[%clk 0:03:00]} 3. Bd3 {[%clk 0:03:00]}  e6 {[%clk 0:03:01]} 4. Qe2 {[%clk 0:02:57]}  Nf6 {[%clk 0:03:01]} 5. Nf3 {[%clk 0:02:57]}  d5 {[%clk 0:03:02]} 6. e5 {[%clk 0:02:55]}  Nfd7 {[%clk 0:03:02]} 7. O-O {[%clk 0:02:53]}  c5 {[%clk 0:03:02]} 8. c3 {[%clk 0:02:53]}  Nc6 {[%clk 0:03:02]} 9. Bg5 {[%clk 0:02:47]}  Qc7 {[%clk 0:03:02]} 10. Nbd2 {[%clk 0:02:42]}  h6 {[%clk 0:03:02]} 11. Bh4 {[%clk 0:02:39]}  g5 {[%clk 0:03:02]} 12. Bg3 {[%clk 0:02:27]}  O-O-O {[%clk 0:03:02]} 13. Rfc1 {[%clk 0:02:23]}  c4 {[%clk 0:03:00]} 14. Bc2 {[%clk 0:02:21]}  Be7 {[%clk 0:02:58]} 15. b3 {[%clk 0:02:21]}  Na5 {[%clk 0:02:55]} 16. bxc4 {[%clk 0:02:11]}  dxc4 {[%clk 0:02:39]} 17. Be4 {[%clk 0:02:10]}  h5 {[%clk 0:02:35]} 18. h4 {[%clk 0:01:54]}  gxh4 {[%clk 0:02:19]} 19. Bxh4 {[%clk 0:01:55]}  Bxh4 {[%clk 0:02:14]} 20. Nxh4 {[%clk 0:01:55]}  Rdg8 {[%clk 0:02:14]} 21. g3 {[%clk 0:01:46]}  Rg4 {[%clk 0:02:11]} 22. Bf3 {[%clk 0:01:45]}  Bxf3 {[%clk 0:02:00]} 23. Qxf3 {[%clk 0:01:46]}  Rhg8 {[%clk 0:01:56]} 24. Kh2 {[%clk 0:01:42]}  f6 {[%clk 0:01:14]} 25. Kh1 {[%clk 0:00:57]}  fxe5 {[%clk 0:01:12]} 26. Qf7 {[%clk 0:00:48]}  exd4 {[%clk 0:00:59]} 27. Qxe6 {[%clk 0:00:18]}  d3 {[%clk 0:00:43]} 28. Ndf3 {[%clk 0:00:17]}  Qc6 {[%clk 0:00:38]} 29. Kh2 {[%clk 0:00:17]}  Qxe6 {[%clk 0:00:37]} 0-1

[Event "January 9 Early 2024"]
[Site "https://www.chess.com"]
[Date "2024.01.11"]
[Round "8"]
[White "Pein, Jonathan"]
[Black "Samarth J Rao"]
[Result "0-1"]
[Board "61"]
[TimeControl "180+1"]
[WhiteFideId "417092"]
[BlackFideId "46652370"]
[WhiteElo "2318"]
[BlackElo "1910"]
[WhiteTeam "ENG"]
[BlackTeam "IND"]
[WhiteClock "0:00:33"]
[BlackClock "0:00:43"]

1. b3 {[%clk 0:03:00]}  Nf6 {[%clk 0:02:49]} 2. Bb2 {[%clk 0:03:01]}  e6 {[%clk 0:02:48]} 3. e3 {[%clk 0:03:01]}  Be7 {[%clk 0:02:48]} 4. f4 {[%clk 0:02:52]}  O-O {[%clk 0:02:45]} 5. Nf3 {[%clk 0:02:53]}  c5 {[%clk 0:02:43]} 6. Be2 {[%clk 0:02:27]}  b6 {[%clk 0:02:42]} 7. O-O {[%clk 0:02:26]}  Ba6 {[%clk 0:02:42]} 8. d3 {[%clk 0:02:25]}  d6 {[%clk 0:02:38]} 9. Qe1 {[%clk 0:02:24]}  Nfd7 {[%clk 0:02:37]} 10. Nbd2 {[%clk 0:02:15]}  Bf6 {[%clk 0:02:36]} 11. Bxf6 {[%clk 0:02:13]}  Qxf6 {[%clk 0:02:33]} 12. Ne4 {[%clk 0:02:11]}  Qe7 {[%clk 0:02:32]} 13. Qg3 {[%clk 0:02:06]}  Nc6 {[%clk 0:02:24]} 14. Qh3 {[%clk 0:02:03]}  f5 {[%clk 0:02:09]} 15. Nf2 {[%clk 0:01:50]}  Nb4 {[%clk 0:02:06]} 16. Bd1 {[%clk 0:01:40]}  Nd5 {[%clk 0:02:03]} 17. Nd2 {[%clk 0:01:36]}  Rae8 {[%clk 0:01:44]} 18. a3 {[%clk 0:01:33]}  e5 {[%clk 0:01:36]} 19. c4 {[%clk 0:01:28]}  Nc7 {[%clk 0:01:14]} 20. Bc2 {[%clk 0:01:21]}  exf4 {[%clk 0:01:10]} 21. exf4 {[%clk 0:01:22]}  Qe3 {[%clk 0:01:11]} 22. Qxe3 {[%clk 0:01:15]}  Rxe3 {[%clk 0:01:10]} 23. Rae1 {[%clk 0:01:16]}  Rfe8 {[%clk 0:01:08]} 24. Rxe3 {[%clk 0:01:04]}  Rxe3 {[%clk 0:01:09]} 25. Nd1 {[%clk 0:01:04]}  Re2 {[%clk 0:01:07]} 26. Rf2 {[%clk 0:01:01]}  Re1+ {[%clk 0:01:07]} 27. Nf1 {[%clk 0:00:59]}  Ne6 {[%clk 0:01:05]} 28. Ne3 {[%clk 0:00:52]}  Nd4 {[%clk 0:01:02]} 29. g3 {[%clk 0:00:50]}  Bb7 {[%clk 0:01:00]} 30. Bd1 {[%clk 0:00:46]}  Nf6 {[%clk 0:00:52]} 31. h3 {[%clk 0:00:44]}  g6 {[%clk 0:00:46]} 32. Nc2 {[%clk 0:00:38]}  Rxd1 {[%clk 0:00:45]} 33. Ne3 {[%clk 0:00:36]}  Re1 {[%clk 0:00:43]} 34. g4 {[%clk 0:00:33]} 0-1

[Event "January 9 Early 2024"]
[Site "https://www.chess.com"]
[Date "2024.01.11"]
[Round "8"]
[White "Topalov, Aleksandar"]
[Black "Yonal, Timur"]
[Result "1-0"]
[Board "63"]
[TimeControl "180+1"]
[WhiteFideId "925659"]
[BlackFideId "44115725"]
[WhiteElo "2427"]
[BlackElo "2259"]
[WhiteTeam "SRB"]
[BlackTeam "TUR"]
[WhiteClock "0:00:57"]
[BlackClock "0:00:05"]

1. b3 {[%clk 0:02:57]}  d5 {[%clk 0:02:52]} 2. Bb2 {[%clk 0:02:57]}  c5 {[%clk 0:02:37]} 3. e3 {[%clk 0:02:56]}  Nc6 {[%clk 0:02:37]} 4. Bb5 {[%clk 0:02:56]}  Nf6 {[%clk 0:02:34]} 5. f4 {[%clk 0:02:56]}  e6 {[%clk 0:02:33]} 6. Nf3 {[%clk 0:02:56]}  Be7 {[%clk 0:02:22]} 7. Bxc6+ {[%clk 0:02:55]}  bxc6 {[%clk 0:02:19]} 8. Ne5 {[%clk 0:02:55]}  Qc7 {[%clk 0:02:06]} 9. O-O {[%clk 0:02:54]}  O-O {[%clk 0:02:04]} 10. d3 {[%clk 0:02:54]}  Ne8 {[%clk 0:01:59]} 11. Nd2 {[%clk 0:02:49]}  f6 {[%clk 0:01:54]} 12. Nef3 {[%clk 0:02:46]}  Nd6 {[%clk 0:01:45]} 13. Qe2 {[%clk 0:02:46]}  Nf7 {[%clk 0:01:37]} 14. e4 {[%clk 0:02:34]}  Bd7 {[%clk 0:01:12]} 15. e5 {[%clk 0:02:25]}  f5 {[%clk 0:01:00]} 16. c4 {[%clk 0:02:19]}  d4 {[%clk 0:01:00]} 17. Rf2 {[%clk 0:02:08]}  Nh6 {[%clk 0:00:58]} 18. h3 {[%clk 0:02:07]}  Be8 {[%clk 0:00:57]} 19. Qf1 {[%clk 0:02:04]}  Bh5 {[%clk 0:00:55]} 20. g3 {[%clk 0:02:01]}  Kh8 {[%clk 0:00:44]} 21. Kh1 {[%clk 0:02:01]}  Rg8 {[%clk 0:00:42]} 22. Bc1 {[%clk 0:01:45]}  Nf7 {[%clk 0:00:40]} 23. Nh2 {[%clk 0:01:40]}  g5 {[%clk 0:00:39]} 24. g4 {[%clk 0:01:39]}  Bg6 {[%clk 0:00:34]} 25. Ndf3 {[%clk 0:01:34]}  Raf8 {[%clk 0:00:14]} 26. fxg5 {[%clk 0:01:31]}  Nxe5 {[%clk 0:00:14]} 27. Bf4 {[%clk 0:01:27]}  Bd6 {[%clk 0:00:14]} 28. Re1 {[%clk 0:01:25]}  Nxf3 {[%clk 0:00:13]} 29. Rxf3 {[%clk 0:01:21]}  fxg4 {[%clk 0:00:12]} 30. Bxd6 {[%clk 0:01:18]}  Qxd6 {[%clk 0:00:12]} 31. Nxg4 {[%clk 0:01:16]}  Bf5 {[%clk 0:00:07]} 32. Nh6 {[%clk 0:01:02]}  Rxg5 {[%clk 0:00:05]} 33. Re4 {[%clk 0:00:57]} 1-0

[Event "January 9 Early 2024"]
[Site "https://www.chess.com"]
[Date "2024.01.11"]
[Round "8"]
[White "Osinovsky, Stepan"]
[Black "Ljukin, Sergei"]
[Result "1-0"]
[Board "64"]
[TimeControl "180+1"]
[WhiteFideId "4157354"]
[BlackFideId "14102200"]
[WhiteElo "2423"]
[BlackElo "2516"]
[WhiteTeam "RUS"]
[BlackTeam "UKR"]
[WhiteClock "0:00:32"]
[BlackClock "0:00:02"]

1. e4 {[%clk 0:03:00]}  e6 {[%clk 0:03:00]} 2. d3 {[%clk 0:02:59]}  d5 {[%clk 0:02:59]} 3. Nd2 {[%clk 0:03:00]}  Nf6 {[%clk 0:03:00]} 4. Ngf3 {[%clk 0:03:00]}  Be7 {[%clk 0:03:00]} 5. g3 {[%clk 0:03:00]}  O-O {[%clk 0:03:00]} 6. Bg2 {[%clk 0:03:01]}  c5 {[%clk 0:03:01]} 7. O-O {[%clk 0:03:01]}  Nc6 {[%clk 0:03:01]} 8. Re1 {[%clk 0:03:02]}  Qc7 {[%clk 0:03:01]} 9. Qe2 {[%clk 0:02:59]}  b5 {[%clk 0:03:01]} 10. Nb3 {[%clk 0:02:40]}  a5 {[%clk 0:02:42]} 11. a4 {[%clk 0:02:22]}  Ba6 {[%clk 0:01:53]} 12. exd5 {[%clk 0:02:05]}  exd5 {[%clk 0:01:46]} 13. axb5 {[%clk 0:02:03]}  Bxb5 {[%clk 0:01:45]} 14. c4 {[%clk 0:01:58]}  dxc4 {[%clk 0:01:16]} 15. dxc4 {[%clk 0:01:59]}  Ba6 {[%clk 0:01:17]} 16. Bf4 {[%clk 0:01:56]}  Qb6 {[%clk 0:01:12]} 17. Nxa5 {[%clk 0:01:44]}  Nxa5 {[%clk 0:00:55]} 18. Qxe7 {[%clk 0:01:43]}  Nxc4 {[%clk 0:00:36]} 19. b3 {[%clk 0:00:56]}  Qxb3 {[%clk 0:00:17]} 20. Reb1 {[%clk 0:00:51]}  Qd3 {[%clk 0:00:07]} 21. Ne1 {[%clk 0:00:45]}  Qf5 {[%clk 0:00:02]} 22. Bxa8 {[%clk 0:00:43]}  Rxa8 {[%clk 0:00:02]} 23. Rxa6 {[%clk 0:00:41]}  Re8 {[%clk 0:00:02]} 24. Rb8 {[%clk 0:00:32]} 1-0

[Event "January 9 Early 2024"]
[Site "https://www.chess.com"]
[Date "2024.01.11"]
[Round "8"]
[White "Przybylski, Wojciech"]
[Black "Diaz, Fernando"]
[Result "1-0"]
[Board "65"]
[TimeControl "180+1"]
[WhiteFideId "1117599"]
[BlackFideId "3701255"]
[WhiteElo "2552"]
[BlackElo "2303"]
[WhiteTeam "POL"]
[BlackTeam "PAR"]
[WhiteClock "0:01:26"]
[BlackClock "0:00:06"]

1. e4 {[%clk 0:02:59]}  e6 {[%clk 0:02:53]} 2. d4 {[%clk 0:02:59]}  d5 {[%clk 0:02:54]} 3. Nc3 {[%clk 0:02:59]}  Bb4 {[%clk 0:02:53]} 4. e5 {[%clk 0:02:59]}  c5 {[%clk 0:02:54]} 5. a3 {[%clk 0:03:00]}  Bxc3+ {[%clk 0:02:54]} 6. bxc3 {[%clk 0:03:01]}  Ne7 {[%clk 0:02:54]} 7. h4 {[%clk 0:03:01]}  Qa5 {[%clk 0:02:54]} 8. Bd2 {[%clk 0:03:00]}  Qa4 {[%clk 0:02:48]} 9. Rb1 {[%clk 0:03:00]}  c4 {[%clk 0:02:46]} 10. Rb4 {[%clk 0:02:59]}  Qa5 {[%clk 0:02:46]} 11. h5 {[%clk 0:02:59]}  h6 {[%clk 0:02:45]} 12. Qg4 {[%clk 0:02:58]}  Nf5 {[%clk 0:02:44]} 13. Rh3 {[%clk 0:02:57]}  Nc6 {[%clk 0:02:42]} 14. Rb1 {[%clk 0:02:56]}  Qa4 {[%clk 0:02:42]} 15. Rc1 {[%clk 0:02:54]}  Qxa3 {[%clk 0:02:38]} 16. Rf3 {[%clk 0:02:54]}  Nce7 {[%clk 0:02:35]} 17. Ne2 {[%clk 0:02:52]}  Bd7 {[%clk 0:02:33]} 18. Ng3 {[%clk 0:02:51]}  a5 {[%clk 0:02:17]} 19. Nxf5 {[%clk 0:02:49]}  Nxf5 {[%clk 0:02:17]} 20. Rxf5 {[%clk 0:02:50]}  exf5 {[%clk 0:02:18]} 21. Qxg7 {[%clk 0:02:50]}  O-O-O {[%clk 0:02:16]} 22. Qxf7 {[%clk 0:02:41]}  Bc6 {[%clk 0:01:28]} 23. Qxf5+ {[%clk 0:02:35]}  Kb8 {[%clk 0:01:28]} 24. e6 {[%clk 0:02:36]}  Rde8 {[%clk 0:01:26]} 25. Qe5+ {[%clk 0:02:31]}  Ka8 {[%clk 0:01:23]} 26. f4 {[%clk 0:02:31]}  Qe7 {[%clk 0:01:15]} 27. f5 {[%clk 0:02:30]}  Qh4+ {[%clk 0:01:14]} 28. g3 {[%clk 0:02:31]}  Qxh5 {[%clk 0:01:13]} 29. Ra1 {[%clk 0:02:29]}  a4 {[%clk 0:01:12]} 30. Bf4 {[%clk 0:02:22]}  Rhf8 {[%clk 0:01:08]} 31. Qc7 {[%clk 0:02:20]}  Bb5 {[%clk 0:00:33]} 32. Rxa4+ {[%clk 0:02:14]}  Ba6 {[%clk 0:00:33]} 33. Rxa6+ {[%clk 0:02:04]}  bxa6 {[%clk 0:00:34]} 34. Qc6+ {[%clk 0:01:56]}  Ka7 {[%clk 0:00:34]} 35. Qc7+ {[%clk 0:01:52]}  Ka8 {[%clk 0:00:34]} 36. Qc6+ {[%clk 0:01:42]}  Ka7 {[%clk 0:00:34]} 37. Bc7 {[%clk 0:01:32]}  Rb8 {[%clk 0:00:11]} 38. Qc5+ {[%clk 0:01:31]}  Ka8 {[%clk 0:00:11]} 39. Qxd5+ {[%clk 0:01:26]}  Rb7 {[%clk 0:00:11]} 40. Bg2 {[%clk 0:01:26]}  Rb8 {[%clk 0:00:06]} 1-0

[Event "January 9 Early 2024"]
[Site "https://www.chess.com"]
[Date "2024.01.11"]
[Round "8"]
[White "Marchesich, Giovanni"]
[Black "Matko, Ognjen"]
[Result "1-0"]
[Board "67"]
[TimeControl "180+1"]
[WhiteFideId "2824790"]
[BlackFideId "14509717"]
[WhiteElo "2393"]
[BlackElo "2499"]
[WhiteTeam "ITA"]
[BlackTeam "CRO"]
[WhiteClock "0:01:21"]
[BlackClock "0:00:01"]

1. d4 {[%clk 0:03:00]}  d5 {[%clk 0:02:58]} 2. Nc3 {[%clk 0:03:01]}  e6 {[%clk 0:02:48]} 3. Bf4 {[%clk 0:03:00]}  a6 {[%clk 0:02:46]} 4. e3 {[%clk 0:03:00]}  Bd6 {[%clk 0:02:43]} 5. Bd3 {[%clk 0:02:58]}  c5 {[%clk 0:02:40]} 6. Qf3 {[%clk 0:02:57]}  cxd4 {[%clk 0:02:36]} 7. exd4 {[%clk 0:02:57]}  Nc6 {[%clk 0:02:31]} 8. Nge2 {[%clk 0:02:56]}  Bxf4 {[%clk 0:02:28]} 9. Qxf4 {[%clk 0:02:56]}  Qf6 {[%clk 0:02:29]} 10. O-O-O {[%clk 0:02:39]}  Qxf4+ {[%clk 0:02:25]} 11. Nxf4 {[%clk 0:02:40]}  Nf6 {[%clk 0:02:14]} 12. Rhe1 {[%clk 0:02:40]}  O-O {[%clk 0:02:09]} 13. Nce2 {[%clk 0:02:37]}  b5 {[%clk 0:02:00]} 14. f3 {[%clk 0:02:34]}  Bb7 {[%clk 0:01:52]} 15. c3 {[%clk 0:02:34]}  Rfc8 {[%clk 0:01:49]} 16. a3 {[%clk 0:02:32]}  Na5 {[%clk 0:01:47]} 17. Kb1 {[%clk 0:02:31]}  Nc4 {[%clk 0:01:46]} 18. Bxc4 {[%clk 0:02:31]}  dxc4 {[%clk 0:01:44]} 19. Ng3 {[%clk 0:02:29]}  g6 {[%clk 0:01:39]} 20. Ne4 {[%clk 0:02:29]}  Bxe4+ {[%clk 0:01:16]} 21. fxe4 {[%clk 0:02:30]}  Rd8 {[%clk 0:01:11]} 22. h3 {[%clk 0:02:26]}  Ra7 {[%clk 0:01:10]} 23. e5 {[%clk 0:02:22]}  Nd5 {[%clk 0:01:08]} 24. Nxd5 {[%clk 0:02:20]}  Rxd5 {[%clk 0:01:07]} 25. Rf1 {[%clk 0:02:21]}  a5 {[%clk 0:01:05]} 26. Kc2 {[%clk 0:02:12]}  Rad7 {[%clk 0:01:01]} 27. Rb1 {[%clk 0:02:05]}  Kg7 {[%clk 0:00:52]} 28. b3 {[%clk 0:02:02]}  cxb3+ {[%clk 0:00:49]} 29. Rxb3 {[%clk 0:02:02]}  Rc7 {[%clk 0:00:39]} 30. Kd3 {[%clk 0:01:58]}  Rcd7 {[%clk 0:00:28]} 31. Ke4 {[%clk 0:01:56]}  Rc7 {[%clk 0:00:27]} 32. Kd3 {[%clk 0:01:54]}  Rcd7 {[%clk 0:00:27]} 33. Re1 {[%clk 0:01:49]}  h5 {[%clk 0:00:17]} 34. Re2 {[%clk 0:01:43]}  g5 {[%clk 0:00:15]} 35. Ke4 {[%clk 0:01:41]}  Rc7 {[%clk 0:00:14]} 36. Kd3 {[%clk 0:01:31]}  Kg6 {[%clk 0:00:13]} 37. Reb2 {[%clk 0:01:30]}  b4 {[%clk 0:00:09]} 38. axb4 {[%clk 0:01:28]}  a4 {[%clk 0:00:07]} 39. Ra3 {[%clk 0:01:27]}  f6 {[%clk 0:00:04]} 40. exf6 {[%clk 0:01:26]}  e5 {[%clk 0:00:04]} 41. Rxa4 {[%clk 0:01:24]}  exd4 {[%clk 0:00:03]} 42. cxd4 {[%clk 0:01:25]}  Rcd7 {[%clk 0:00:02]} 43. b5 {[%clk 0:01:25]}  Kxf6 {[%clk 0:00:01]} 44. b6 {[%clk 0:01:25]}  Rb7 {[%clk 0:00:01]} 45. Rc4 {[%clk 0:01:25]}  Rd6 {[%clk 0:00:01]} 46. Rcb4 {[%clk 0:01:22]}  Ke6 {[%clk 0:00:01]} 47. Ke4 {[%clk 0:01:21]} 1-0

[Event "January 9 Early 2024"]
[Site "https://www.chess.com"]
[Date "2024.01.11"]
[Round "8"]
[White "Guzman Lozano, Campo Elias"]
[Black "Mirza, Diana"]
[Result "1-0"]
[Board "68"]
[TimeControl "180+1"]
[WhiteFideId "4403746"]
[BlackFideId "2503999"]
[WhiteElo "2166"]
[BlackElo "2007"]
[WhiteTeam "COL"]
[BlackTeam "IRL"]
[WhiteClock "0:00:52"]
[BlackClock "0:00:10"]

1. e4 {[%clk 0:02:57]}  c5 {[%clk 0:02:46]} 2. c3 {[%clk 0:02:53]}  Nf6 {[%clk 0:02:44]} 3. Bd3 {[%clk 0:02:51]}  Nc6 {[%clk 0:02:39]} 4. Nf3 {[%clk 0:02:51]}  d6 {[%clk 0:02:37]} 5. h3 {[%clk 0:02:50]}  g6 {[%clk 0:02:35]} 6. O-O {[%clk 0:02:49]}  Bg7 {[%clk 0:02:35]} 7. Re1 {[%clk 0:02:49]}  O-O {[%clk 0:02:34]} 8. Bf1 {[%clk 0:02:49]}  a6 {[%clk 0:02:32]} 9. d4 {[%clk 0:02:49]}  cxd4 {[%clk 0:02:32]} 10. cxd4 {[%clk 0:02:49]}  b5 {[%clk 0:02:29]} 11. Nc3 {[%clk 0:02:45]}  Bb7 {[%clk 0:02:29]} 12. d5 {[%clk 0:02:45]}  Ne5 {[%clk 0:01:58]} 13. Nxe5 {[%clk 0:02:42]}  dxe5 {[%clk 0:01:58]} 14. Be3 {[%clk 0:02:41]}  Rc8 {[%clk 0:01:56]} 15. Bd3 {[%clk 0:02:38]}  Nd7 {[%clk 0:01:56]} 16. Rc1 {[%clk 0:02:30]}  f5 {[%clk 0:01:46]} 17. f3 {[%clk 0:02:28]}  Nc5 {[%clk 0:01:43]} 18. Bb1 {[%clk 0:02:26]}  f4 {[%clk 0:01:39]} 19. Bf2 {[%clk 0:02:24]}  g5 {[%clk 0:01:35]} 20. b4 {[%clk 0:02:16]}  Nd7 {[%clk 0:01:26]} 21. a4 {[%clk 0:02:16]}  bxa4 {[%clk 0:01:25]} 22. Qxa4 {[%clk 0:02:15]}  Nf6 {[%clk 0:01:24]} 23. Ba2 {[%clk 0:02:06]}  Kh8 {[%clk 0:01:21]} 24. b5 {[%clk 0:02:05]}  axb5 {[%clk 0:01:17]} 25. Nxb5 {[%clk 0:02:05]}  h5 {[%clk 0:01:10]} 26. Qa7 {[%clk 0:02:04]}  Qd7 {[%clk 0:01:00]} 27. Qb6 {[%clk 0:01:47]}  g4 {[%clk 0:00:52]} 28. hxg4 {[%clk 0:01:45]}  hxg4 {[%clk 0:00:52]} 29. Bh4 {[%clk 0:01:45]}  gxf3 {[%clk 0:00:48]} 30. Qe6 {[%clk 0:01:30]}  Qxb5 {[%clk 0:00:38]} 31. Bxf6 {[%clk 0:01:17]}  Bxf6 {[%clk 0:00:22]} 32. gxf3 {[%clk 0:01:15]}  Rxc1 {[%clk 0:00:19]} 33. Qh3+ {[%clk 0:01:09]}  Kg8 {[%clk 0:00:19]} 34. d6+ {[%clk 0:01:09]}  Kg7 {[%clk 0:00:15]} 35. Rxc1 {[%clk 0:01:04]}  Qb6+ {[%clk 0:00:11]} 36. Kh2 {[%clk 0:00:58]}  Rh8 {[%clk 0:00:11]} 37. Rg1+ {[%clk 0:00:58]}  Kf8 {[%clk 0:00:10]} 38. Qxh8+ {[%clk 0:00:52]}  Bxh8 {[%clk 0:00:10]} 39. Rg8# {[%clk 0:00:52]} 1-0

[Event "January 9 Early 2024"]
[Site "https://www.chess.com"]
[Date "2024.01.11"]
[Round "8"]
[White "Golubovic, Erik"]
[Black "Rogov, Matfey"]
[Result "0-1"]
[Board "71"]
[TimeControl "180+1"]
[WhiteFideId "14586908"]
[BlackFideId "44191308"]
[WhiteElo "2277"]
[BlackElo "2549"]
[WhiteTeam "CRO"]
[BlackTeam "RUS"]
[WhiteClock "0:00:17"]
[BlackClock "0:00:16"]

1. d4 {[%clk 0:03:00]}  e6 {[%clk 0:02:59]} 2. c4 {[%clk 0:03:00]}  Nf6 {[%clk 0:02:59]} 3. Nf3 {[%clk 0:03:00]}  c5 {[%clk 0:02:59]} 4. d5 {[%clk 0:02:59]}  b5 {[%clk 0:03:00]} 5. dxe6 {[%clk 0:02:54]}  fxe6 {[%clk 0:03:01]} 6. cxb5 {[%clk 0:02:54]}  d5 {[%clk 0:03:01]} 7. e3 {[%clk 0:02:47]}  Bd6 {[%clk 0:03:01]} 8. Be2 {[%clk 0:02:46]}  O-O {[%clk 0:03:01]} 9. O-O {[%clk 0:02:45]}  e5 {[%clk 0:03:02]} 10. e4 {[%clk 0:02:36]}  Bb7 {[%clk 0:02:56]} 11. exd5 {[%clk 0:02:30]}  e4 {[%clk 0:02:57]} 12. Ng5 {[%clk 0:02:22]}  Nxd5 {[%clk 0:02:30]} 13. Ne6 {[%clk 0:02:02]}  Bxh2+ {[%clk 0:02:10]} 14. Kxh2 {[%clk 0:01:59]}  Qd6+ {[%clk 0:02:10]} 15. Nf4 {[%clk 0:01:58]}  g5 {[%clk 0:01:47]} 16. Nc3 {[%clk 0:01:56]}  gxf4 {[%clk 0:01:47]} 17. Nxe4 {[%clk 0:01:53]}  Qg6 {[%clk 0:01:27]} 18. Bf3 {[%clk 0:01:48]}  Nd7 {[%clk 0:01:23]} 19. Nxc5 {[%clk 0:01:30]}  Nxc5 {[%clk 0:00:50]} 20. Bxd5+ {[%clk 0:01:29]}  Bxd5 {[%clk 0:00:51]} 21. Qxd5+ {[%clk 0:01:29]}  Ne6 {[%clk 0:00:52]} 22. Re1 {[%clk 0:01:21]}  Rae8 {[%clk 0:00:51]} 23. Bd2 {[%clk 0:01:17]}  f3 {[%clk 0:00:25]} 24. gxf3 {[%clk 0:01:15]}  Rf5 {[%clk 0:00:23]} 25. Rxe6 {[%clk 0:00:19]}  Rh5+ {[%clk 0:00:15]} 26. Qxh5 {[%clk 0:00:17]}  Qxh5+ {[%clk 0:00:16]} 0-1

[Event "January 9 Early 2024"]
[Site "https://www.chess.com"]
[Date "2024.01.11"]
[Round "8"]
[White "Sarkar, Justin"]
[Black "Gutierrez Olivares, Daniel"]
[Result "0-1"]
[Board "75"]
[TimeControl "180+1"]
[WhiteFideId "2010011"]
[BlackFideId "2264005"]
[WhiteElo "2299"]
[BlackElo "2481"]
[WhiteTeam "USA"]
[BlackTeam "ESP"]
[WhiteClock "0:00:02"]
[BlackClock "0:00:33"]

1. e4 {[%clk 0:02:39]}  e6 {[%clk 0:02:56]} 2. d4 {[%clk 0:02:38]}  d5 {[%clk 0:02:57]} 3. Nc3 {[%clk 0:02:38]}  Bb4 {[%clk 0:02:57]} 4. e5 {[%clk 0:02:38]}  Ne7 {[%clk 0:02:57]} 5. a3 {[%clk 0:02:28]}  Ba5 {[%clk 0:02:57]} 6. b4 {[%clk 0:02:04]}  Bb6 {[%clk 0:02:57]} 7. Na4 {[%clk 0:02:04]}  Nbc6 {[%clk 0:02:40]} 8. c3 {[%clk 0:01:42]}  Nf5 {[%clk 0:02:29]} 9. Bd3 {[%clk 0:01:32]}  f6 {[%clk 0:02:14]} 10. Bxf5 {[%clk 0:00:27]}  exf5 {[%clk 0:02:13]} 11. exf6 {[%clk 0:00:27]}  Qxf6 {[%clk 0:02:08]} 12. Ne2 {[%clk 0:00:25]}  Bd7 {[%clk 0:01:40]} 13. O-O {[%clk 0:00:22]}  g5 {[%clk 0:01:37]} 14. Ng3 {[%clk 0:00:15]}  O-O-O {[%clk 0:01:22]} 15. Nxb6+ {[%clk 0:00:10]}  axb6 {[%clk 0:01:20]} 16. f4 {[%clk 0:00:09]}  h6 {[%clk 0:01:15]} 17. a4 {[%clk 0:00:09]}  Kb8 {[%clk 0:01:12]} 18. a5 {[%clk 0:00:09]}  b5 {[%clk 0:01:07]} 19. a6 {[%clk 0:00:09]}  b6 {[%clk 0:01:03]} 20. Qd3 {[%clk 0:00:09]}  Ne7 {[%clk 0:00:55]} 21. a7+ {[%clk 0:00:07]}  Kb7 {[%clk 0:00:51]} 22. Bd2 {[%clk 0:00:07]}  Ra8 {[%clk 0:00:47]} 23. Qe3 {[%clk 0:00:07]}  Nc8 {[%clk 0:00:45]} 24. fxg5 {[%clk 0:00:06]}  hxg5 {[%clk 0:00:43]} 25. Qxg5 {[%clk 0:00:07]}  Qxg5 {[%clk 0:00:39]} 26. Bxg5 {[%clk 0:00:07]}  Nd6 {[%clk 0:00:40]} 27. Be7 {[%clk 0:00:04]}  Nc4 {[%clk 0:00:34]} 28. Nxf5 {[%clk 0:00:03]}  Nd2 {[%clk 0:00:33]} 29. Rf4 {[%clk 0:00:02]}  Ne4 {[%clk 0:00:33]} 0-1

[Event "January 9 Early 2024"]
[Site "https://www.chess.com"]
[Date "2024.01.11"]
[Round "8"]
[White "Tarnowska, Aleksandra"]
[Black "Tilahun , Abel Mathewos"]
[Result "0-1"]
[Board "76"]
[TimeControl "180+1"]
[WhiteFideId "1180967"]
[BlackFideId "15702391"]
[WhiteElo "2178"]
[BlackElo "2041"]
[WhiteTeam "POL"]
[BlackTeam "ETH"]
[WhiteClock "0:00:01"]
[BlackClock "0:00:28"]

1. e4 {[%clk 0:00:38]}  e6 {[%clk 0:02:58]} 2. d4 {[%clk 0:00:38]}  d5 {[%clk 0:02:59]} 3. Nd2 {[%clk 0:00:36]}  Nc6 {[%clk 0:02:58]} 4. e5 {[%clk 0:00:37]}  Nxd4 {[%clk 0:02:55]} 5. Bd3 {[%clk 0:00:35]}  c5 {[%clk 0:02:52]} 6. c3 {[%clk 0:00:34]}  Nc6 {[%clk 0:02:51]} 7. Ne2 {[%clk 0:00:35]}  Nxe5 {[%clk 0:02:50]} 8. Bc2 {[%clk 0:00:32]}  Bd7 {[%clk 0:02:48]} 9. O-O {[%clk 0:00:31]}  Nf6 {[%clk 0:02:48]} 10. f4 {[%clk 0:00:29]}  Ng6 {[%clk 0:02:44]} 11. f5 {[%clk 0:00:28]}  exf5 {[%clk 0:02:39]} 12. Ng3 {[%clk 0:00:20]}  f4 {[%clk 0:02:30]} 13. Nh5 {[%clk 0:00:15]}  Nxh5 {[%clk 0:02:27]} 14. Qxh5 {[%clk 0:00:15]}  Be6 {[%clk 0:01:43]} 15. Bxg6 {[%clk 0:00:11]}  fxg6 {[%clk 0:01:39]} 16. Qe5 {[%clk 0:00:11]}  Qd6 {[%clk 0:01:33]} 17. Qe2 {[%clk 0:00:05]}  O-O-O {[%clk 0:01:24]} 18. Nf3 {[%clk 0:00:05]}  Re8 {[%clk 0:01:24]} 19. Qb5 {[%clk 0:00:04]}  Bd7 {[%clk 0:01:17]} 20. Qa5 {[%clk 0:00:05]}  Kb8 {[%clk 0:01:05]} 21. Ng5 {[%clk 0:00:04]}  Qb6 {[%clk 0:00:34]} 22. Bxf4+ {[%clk 0:00:02]}  Ka8 {[%clk 0:00:32]} 23. Qa3 {[%clk 0:00:01]}  c4+ {[%clk 0:00:31]} 24. Kh1 {[%clk 0:00:01]}  Bxa3 {[%clk 0:00:30]} 25. bxa3 {[%clk 0:00:01]}  Rhf8 {[%clk 0:00:28]} 0-1